bitfinex/quotes_SOLUSD_20250529
["timestamp","ask_amount","ask_price","bid_price","bid_amount"]
[1748537145744,31.90431336,169.37,169.32,21.41940779]
[1748537145954,21.41940779,169.36,169.32,89.7]
[1748537147653,27.32400233,169.36,169.32,89.7]
[1748537147827,5.90459454,169.36,169.32,111.11940779]
[1748537149046,27.32400233,169.36,169.32,111.11940779]
[1748537151335,21.41940779,169.33,169.32,89.7]
[1748537151738,21.41940779,169.34,169.32,89.7]
[1748537152730,20.66604942,169.36,169.32,89.7]
[1748537152936,5.90388475,169.38,169.32,111.11940779]
[1748537153137,27.32329254,169.38,169.33,21.41940779]
[1748537154043,5.90388475,169.38,169.33,21.41940779]
[1748537154342,21.41940779,169.36,169.32,126.22]
[1748537154743,21.41940779,169.36,169.32,89.7]
[1748537155361,5.90493061,169.35,169.32,89.7]
[1748537155664,5.90493061,169.35,169.32,111.11940779]
[1748537157039,62.80432314,169.41,169.32,111.11940779]
[1748537157040,5.90423333,169.37,169.32,111.11940779]
[1748537157240,5.90423333,169.37,169.33,21.41940779]
[1748537157968,27.32364112,169.37,169.33,21.41940779]
[1748537158171,27.32364112,169.37,169.32,89.7]
[1748537158362,21.41940779,169.36,169.32,111.11940779]
[1748537158667,21.41940779,169.36,169.32,89.7]
[1748537159474,27.32419974,169.36,169.32,89.7]
[1748537160451,21.41940779,169.33,169.32,89.7]
[1748537160651,21.41940779,169.33,169.23,11.2298]
[1748537160652,0.42648471,169.32,169.23,11.2298]
[1748537160865,21.41940779,169.27,169.23,100.9298]
[1748537161095,21.41940779,169.26,169.23,100.9298]
[1748537161647,21.41940779,169.27,169.23,100.9298]
[1748537161982,62.94648471,169.32,169.23,100.9298]
[1748537161983,21.41940779,169.26,169.23,100.9298]
[1748537162278,21.41940779,169.27,169.23,100.9298]
[1748537162466,5.90807042,169.26,169.23,100.9298]
[1748537167573,27.32747821,169.26,169.23,100.9298]
[1748537168855,21.41940779,169.25,169.23,99.28]
[1748537169052,21.41940779,169.24,169.23,99.28]
[1748537169251,21.41940779,169.24,169.23,89.7]
[1748537169870,20.67824648,169.26,169.23,89.7]
[1748537170069,42.09765427,169.26,169.23,89.7]
[1748537172483,27.32747821,169.26,169.23,89.7]
[1748537172666,21.41940779,169.25,169.23,89.7]
[1748537174251,5.90876861,169.24,169.23,89.7]
[1748537174854,27.3281764,169.24,169.23,89.7]
[1748537175582,42.10009793,169.24,169.19,91.2821]
[1748537175785,21.41940779,169.23,169.19,91.2821]
[1748537176470,5.90946696,169.22,169.19,91.2821]
[1748537176666,27.32887475,169.22,169.19,89.7]
[1748537179970,21.41940779,169.21,169.19,89.7]
[1748537180884,21.41940779,169.2,169.19,89.7]
[1748537181275,21.41940779,169.2,169.16,105.76229476]
[1748537181976,5.9105148,169.19,169.16,105.76229476]
[1748537182173,27.32992259,169.19,169.16,105.76229476]
[1748537186699,5.91016548,169.2,169.16,105.76229476]
[1748537186870,27.32957327,169.2,169.16,105.76229476]
[1748537187498,5.91016548,169.2,169.16,105.76229476]
[1748537187686,21.41940779,169.19,169.16,105.76229476]
[1748537188205,21.41940779,169.18,169.16,105.76229476]
[1748537188380,21.41940779,169.19,169.16,105.76229476]
[1748537189680,26.0,169.23,169.16,127.18170255]
[1748537189994,21.41940779,169.21,169.17,21.41940779]
[1748537191202,36.54,169.24,169.18,21.41940779]
[1748537191369,5.90842611,169.25,169.2,21.41940779]
[1748537191566,27.3278339,169.25,169.2,21.41940779]
[1748537191873,21.41940779,169.24,169.2,21.41940779]
[1748537192078,21.41940779,169.23,169.19,21.41940779]
[1748537192285,21.41940779,169.23,169.18,89.7]
[1748537192605,21.41940779,169.23,169.18,117.03011663]
[1748537193611,27.32852937,169.23,169.18,117.03011663]
[1748537194675,21.41940779,169.23,169.19,21.41940779]
[1748537194898,27.32822421,169.24,169.19,21.41940779]
[1748537195914,27.32859118,169.23,169.18,89.7]
[1748537196125,21.41940779,169.22,169.18,111.11940779]
[1748537198095,27.32890919,169.22,169.18,111.11940779]
[1748537198685,21.41940779,169.22,169.18,111.11940779]
[1748537198899,27.32864995,169.23,169.18,111.11940779]
[1748537199220,21.41940779,169.24,169.19,21.41940779]
[1748537199393,21.41940779,169.24,169.2,21.41940779]
[1748537199712,27.32782728,169.25,169.2,21.41940779]
[1748537200083,21.41940779,169.23,169.19,21.41940779]
[1748537200484,27.32831385,169.24,169.19,21.41940779]
[1748537201217,26.0,169.27,169.22,21.41940779]
[1748537201407,23.32000596,169.29,169.22,111.11940779]
[1748537201408,40.76822125,169.29,169.22,111.11940779]
[1748537201607,40.76822125,169.29,169.22,89.7]
[1748537201608,21.41940779,169.26,169.22,89.7]
[1748537202221,5.9073724,169.28,169.24,21.41940779]
[1748537202393,21.41940779,169.27,169.22,111.11940779]
[1748537202594,21.41940779,169.26,169.22,89.7]
[1748537202901,21.41940779,169.25,169.22,89.7]
[1748537203411,21.41940779,169.27,169.22,111.11940779]
[1748537203621,27.32678019,169.28,169.23,21.41940779]
[1748537205017,5.90709233,169.29,169.25,21.41940779]
[1748537205518,27.32650012,169.29,169.24,21.41940779]
[1748537206012,27.32650012,169.29,169.24,27.32815107]
[1748537206191,5.90709233,169.29,169.24,27.32815107]
[1748537206396,21.41940779,169.29,169.25,21.41940779]
[1748537206906,21.41940779,169.29,169.24,117.02815107]
[1748537208804,21.41940779,169.28,169.24,89.7]
[1748537209014,21.41940779,169.25,169.23,89.7]
[1748537209216,21.41940779,169.24,169.23,89.7]
[1748537210028,27.3281764,169.24,169.23,89.7]
[1748537210439,6.33385711,169.28,169.23,89.7]
[1748537210733,21.41940779,169.25,169.23,89.7]
[1748537211326,21.41940779,169.24,169.23,89.7]
[1748537211638,21.10228811,169.28,169.23,89.7]
[1748537211836,21.41940779,169.24,169.23,89.7]
[1748537213137,27.32818218,169.24,169.2,21.41940779]
[1748537214732,27.32818218,169.24,169.19,95.61044613]
[1748537214907,27.32818218,169.24,169.2,21.41940779]
[1748537215916,27.32795404,169.25,169.2,21.41940779]
[1748537216622,5.90854625,169.25,169.2,21.41940779]
[1748537217018,27.32795404,169.25,169.2,21.41940779]
[1748537217219,27.32795404,169.25,169.2,27.32954076]
[1748537218640,27.32795404,169.25,169.2,21.41940779]
[1748537219021,27.32795404,169.25,169.2,111.11940779]
[1748537220214,21.41940779,169.24,169.2,111.11940779]
[1748537220408,21.41940779,169.24,169.2,89.7]
[1748537220614,21.41940779,169.24,169.2,111.11940779]
[1748537221426,21.41940779,169.26,169.22,21.41940779]
[1748537221625,21.41940779,169.27,169.22,21.41940779]
[1748537222026,21.41940779,169.27,169.23,21.41940779]
[1748537222233,5.9073724,169.28,169.23,21.41940779]
[1748537222553,36.52,169.3,169.26,21.41940779]
[1748537222554,21.41940779,169.3,169.26,21.41940779]
[1748537222835,21.41940779,169.3,169.26,89.7]
[1748537223648,27.32639257,169.3,169.26,89.7]
[1748537224542,27.32582723,169.31,169.26,111.11940779]
[1748537224728,27.32582723,169.31,169.27,21.41940779]
[1748537224946,27.32582723,169.31,169.27,111.11940779]
[1748537225345,21.41940779,169.3,169.27,89.7]
[1748537225555,27.32608252,169.3,169.27,89.7]
[1748537225731,21.41940779,169.31,169.27,89.7]
[1748537226059,42.37301688,169.32,169.27,111.11940779]
[1748537226362,15.04759169,169.32,169.29,21.41940779]
[1748537226662,5.90460833,169.36,169.31,21.41940779]
[1748537226867,21.41940779,169.37,169.32,21.41940779]
[1748537227073,1.5197,169.41,169.34,21.41940779]
[1748537227236,21.41940779,169.4,169.35,21.41940779]
[1748537227434,5.90283926,169.41,169.35,21.41940779]
[1748537227760,27.32271869,169.4,169.35,21.41940779]
[1748537227937,5.90295107,169.41,169.36,21.41940779]
[1748537228143,27.32235886,169.41,169.36,21.41940779]
[1748537228635,21.41940779,169.4,169.36,21.41940779]
[1748537229175,21.41940779,169.4,169.35,21.41940779]
[1748537229341,27.32235886,169.41,169.36,21.41940779]
[1748537230241,27.32235886,169.41,169.36,111.11940779]
[1748537230438,21.41940779,169.4,169.36,111.11940779]
[1748537230859,27.32235886,169.41,169.36,111.11940779]
[1748537233445,21.41940779,169.4,169.36,111.11940779]
[1748537233754,21.41940779,169.4,169.36,21.41940779]
[1748537234157,5.90353621,169.39,169.35,21.41940779]
[1748537234457,27.322944,169.39,169.33,135.78]
[1748537234661,21.41940779,169.38,169.33,157.19940779]
[1748537234839,21.41940779,169.38,169.33,120.69940779]
[1748537235039,21.41940779,169.37,169.33,99.28]
[1748537235241,21.41940779,169.36,169.33,99.28]
[1748537235436,21.41940779,169.35,169.33,99.28]
[1748537235642,21.41940779,169.34,169.3,89.7]
[1748537235860,21.41940779,169.32,169.3,89.7]
[1748537236045,62.68,169.36,169.3,89.7]
[1748537236370,21.41940779,169.32,169.3,89.7]
[1748537237343,21.41940779,169.31,169.3,89.7]
[1748537239462,27.32573346,169.31,169.3,89.7]
[1748537239968,42.09154764,169.31,169.25,21.41940779]
[1748537240170,21.41940779,169.29,169.25,111.11940779]
[1748537240745,20.67213985,169.31,169.25,111.11940779]
[1748537240947,21.41940779,169.3,169.25,111.11940779]
[1748537241252,21.41940779,169.3,169.26,21.41940779]
[1748537241454,14.76581418,169.31,169.26,21.41940779]
[1748537241649,5.90597684,169.32,169.27,21.41940779]
[1748537241972,21.41940779,169.31,169.27,21.41940779]
[1748537242173,21.41940779,169.3,169.25,89.7]
[1748537242373,21.41940779,169.3,169.26,21.41940779]
[1748537242669,21.41940779,169.31,169.26,21.41940779]
[1748537244171,5.90667454,169.3,169.26,21.41940779]
[1748537244356,27.32608233,169.3,169.26,21.41940779]
[1748537244672,27.32608233,169.3,169.25,111.11940779]
[1748537245277,5.90667454,169.3,169.26,21.41940779]
[1748537245678,5.90667454,169.3,169.26,111.11940779]
[1748537248053,27.32585413,169.31,169.27,21.41940779]
[1748537248254,5.90644634,169.31,169.27,21.41940779]
[1748537248551,27.32585413,169.31,169.27,21.41940779]
[1748537248861,5.90644634,169.31,169.27,111.11940779]
[1748537250481,21.41940779,169.3,169.27,89.7]
[1748537251665,21.41940779,169.29,169.27,89.7]
[1748537251868,27.32678019,169.28,169.27,89.7]
[1748537252386,5.9073724,169.28,169.27,89.7]
[1748537254969,27.32652749,169.29,169.27,89.7]
[1748537255177,5.9071197,169.29,169.27,89.7]
[1748537255584,5.9071197,169.29,169.25,21.41940779]
[1748537255585,5.9071197,169.29,169.25,111.11940779]
[1748537255977,5.90632567,169.31,169.25,111.11940779]
[1748537256287,21.41940779,169.3,169.25,111.11940779]
[1748537257385,5.90632567,169.31,169.25,111.11940779]
[1748537257558,21.41940779,169.32,169.28,21.41940779]
[1748537257963,27.3256982,169.32,169.28,21.41940779]
[1748537258783,27.3256982,169.32,169.27,21.41940779]
[1748537258980,27.3256982,169.32,169.27,117.02711548]
[1748537259175,27.3256982,169.32,169.28,21.41940779]
[1748537259872,27.32512343,169.33,169.29,21.41940779]
[1748537260067,27.32512343,169.33,169.29,89.7]
[1748537261201,21.41940779,169.32,169.29,89.7]
[1748537261774,21.41940779,169.31,169.29,89.7]
[1748537262473,27.32587397,169.31,169.29,89.7]
[1748537262681,5.90646618,169.31,169.29,89.7]
[1748537263788,27.32587397,169.31,169.29,89.7]
[1748537263996,5.90646618,169.31,169.29,89.7]
[1748537269297,27.32587397,169.31,169.29,89.7]
[1748537278597,21.41940779,169.3,169.29,89.7]
[1748537280392,27.32608233,169.3,169.29,89.7]
[1748537281269,27.32608233,169.3,169.25,120.79940779]
[1748537282694,21.41940779,169.3,169.25,120.79940779]
[1748537283181,21.41940779,169.3,169.25,126.70774237]
[1748537283387,5.90597684,169.32,169.26,21.41940779]
[1748537283614,5.90597684,169.32,169.28,21.41940779]
[1748537284198,5.90489816,169.36,169.3,21.41940779]
[1748537284411,5.90388475,169.38,169.3,89.7]
[1748537284707,21.41940779,169.39,169.35,21.41940779]
[1748537285134,21.41940779,169.4,169.33,5.90553068]
[1748537285441,21.41940779,169.4,169.35,21.41940779]
[1748537285621,27.32224705,169.41,169.36,21.41940779]
[1748537285943,21.41940779,169.4,169.35,21.41940779]
[1748537286321,21.41940779,169.39,169.34,21.41940779]
[1748537286734,27.32329254,169.38,169.33,111.11940779]
[1748537287044,5.90388475,169.38,169.34,21.41940779]
[1748537287346,9.62,169.42,169.37,21.41940779]
[1748537287516,21.41940779,169.42,169.37,21.41940779]
[1748537287923,5.90287745,169.41,169.37,21.41940779]
[1748537289931,27.32228524,169.41,169.37,21.41940779]
[1748537290117,5.90287745,169.41,169.37,21.41940779]
[1748537290323,27.32228524,169.41,169.37,21.41940779]
[1748537290633,5.90221314,169.43,169.39,21.41940779]
[1748537290954,5.90221314,169.43,169.39,111.11940779]
[1748537291519,5.90221314,169.43,169.39,89.7]
[1748537291843,21.41940779,169.42,169.39,89.7]
[1748537292618,5.90221314,169.43,169.39,89.7]
[1748537292837,5.90221314,169.43,169.39,111.11940779]
[1748537293618,1.6289,169.46,169.39,111.11940779]
[1748537293820,27.32085364,169.45,169.41,21.41940779]
[1748537294041,5.90144585,169.45,169.41,21.41940779]
[1748537294450,26.0,169.39,169.3,28.8593793]
[1748537294625,21.41940779,169.34,169.3,1.5334]
[1748537294963,21.41940779,169.32,169.27,31.01940779]
[1748537295123,21.41940779,169.33,169.28,21.41940779]
[1748537295521,27.32475059,169.34,169.29,21.41940779]
[1748537296339,21.41940779,169.33,169.28,21.41940779]
[1748537296741,5.9053428,169.34,169.28,21.41940779]
[1748537296935,21.41940779,169.33,169.28,21.41940779]
[1748537297845,5.9053428,169.34,169.29,21.41940779]
[1748537298022,27.32475059,169.34,169.29,21.41940779]
[1748537298953,5.9053428,169.34,169.29,21.41940779]
[1748537299127,27.32398974,169.36,169.31,21.41940779]
[1748537299566,21.41940779,169.35,169.31,21.41940779]
[1748537300144,5.90458195,169.36,169.32,21.41940779]
[1748537300463,5.90458195,169.36,169.33,21.41940779]
[1748537301041,27.32364112,169.37,169.32,21.41940779]
[1748537301280,21.41940779,169.36,169.31,21.41940779]
[1748537301636,21.41940779,169.35,169.31,21.41940779]
[1748537302331,21.41940779,169.35,169.3,21.41940779]
[1748537302763,21.41940779,169.35,169.31,21.41940779]
[1748537302935,21.41940779,169.35,169.3,21.41940779]
[1748537303136,5.90527931,169.34,169.3,21.41940779]
[1748537303573,5.90503443,169.35,169.31,21.41940779]
[1748537304867,21.41940779,169.33,169.31,89.7]
[1748537305162,5.90597684,169.32,169.31,89.7]
[1748537305966,27.32538463,169.32,169.31,89.7]
[1748537307238,5.90597684,169.32,169.31,89.7]
[1748537307464,27.32538463,169.32,169.31,89.7]
[1748537310865,27.32538463,169.32,169.26,89.7]
[1748537311177,21.41940779,169.3,169.26,89.7]
[1748537311849,27.32638733,169.3,169.26,89.7]
[1748537312045,5.90697954,169.3,169.26,89.7]
[1748537312271,5.90697954,169.3,169.26,111.11940779]
[1748537314158,5.90640771,169.31,169.26,95.60803718]
[1748537314359,27.3258155,169.31,169.26,111.11940779]
[1748537315050,5.90640771,169.31,169.27,21.41940779]
[1748537315447,27.3258155,169.31,169.26,111.11940779]
[1748537315754,5.90567609,169.33,169.27,21.41940779]
[1748537315953,21.41940779,169.33,169.29,21.41940779]
[1748537316172,27.32476015,169.34,169.29,21.41940779]
[1748537316363,27.32476015,169.34,169.29,111.11940779]
[1748537316571,62.5,169.36,169.29,111.11940779]
[1748537316572,26.0,169.36,169.3,21.41940779]
[1748537316749,21.41940779,169.36,169.31,21.41940779]
[1748537317079,16.39354496,169.4,169.3,89.7]
[1748537317080,21.41940779,169.35,169.3,111.11940779]
[1748537317257,21.41940779,169.35,169.3,21.41940779]
[1748537317765,21.41940779,169.34,169.29,28.85355118]
[1748537317966,21.41940779,169.34,169.29,22.94660779]
[1748537318167,21.41940779,169.33,169.29,1.5272]
[1748537318585,27.32476053,169.34,169.29,22.94660779]
[1748537318818,21.41940779,169.33,169.29,1.5272]
[1748537319383,5.90535274,169.34,169.29,1.5272]
[1748537319680,21.41940779,169.33,169.29,1.5272]
[1748537321370,27.32476053,169.34,169.29,28.85360166]
[1748537321577,27.32476053,169.34,169.29,22.94660779]
[1748537322393,36.52,169.36,169.3,21.41940779]
[1748537322620,27.32374824,169.37,169.32,21.41940779]
[1748537322992,21.41940779,169.36,169.31,21.41940779]
[1748537323190,31.90395452,169.38,169.31,111.11940779]
[1748537323378,21.41940779,169.37,169.32,21.41940779]
[1748537324298,27.32387423,169.37,169.32,21.41940779]
[1748537325088,27.32387423,169.37,169.31,95.60619167]
[1748537325089,21.41940779,169.36,169.31,111.11940779]
[1748537326321,5.90493061,169.35,169.31,111.11940779]
[1748537326497,21.41940779,169.34,169.31,89.7]
[1748537328407,5.90562806,169.33,169.31,89.7]
[1748537328602,21.41940779,169.32,169.3,89.7]
[1748537329210,21.41940779,169.31,169.3,89.7]
[1748537330111,5.90562806,169.33,169.3,89.7]
[1748537330316,21.41940779,169.31,169.3,89.7]
[1748537332310,51.26339827,169.34,169.3,111.11940779]
[1748537332311,36.5,169.34,169.3,111.11940779]
[1748537332523,36.5,169.34,169.3,117.02601647]
[1748537332689,63.82482164,169.34,169.3,89.7]
[1748537332891,21.41940779,169.33,169.3,89.7]
[1748537333091,21.41940779,169.32,169.3,89.7]
[1748537333410,21.41940779,169.31,169.3,89.7]
[1748537334505,21.41940779,169.31,169.26,126.58734389]
[1748537335018,21.41940779,169.31,169.27,21.41940779]
[1748537335217,36.5,169.38,169.3,21.41940779]
[1748537335513,36.5,169.38,169.31,21.41940779]
[1748537335514,21.41940779,169.36,169.31,21.41940779]
[1748537336509,21.41940779,169.36,169.31,27.32558488]
[1748537336995,21.41940779,169.35,169.31,27.32558488]
[1748537338508,21.41940779,169.36,169.31,27.32558488]
[1748537338909,5.90423333,169.37,169.31,5.90617709]
[1748537339103,21.41940779,169.36,169.31,27.32558488]
[1748537339415,21.41940779,169.35,169.3,27.32601912]
[1748537340404,21.41940779,169.35,169.3,117.02601912]
[1748537341737,27.32419312,169.36,169.31,21.41940779]
[1748537342357,27.32419312,169.36,169.3,95.60661133]
[1748537342358,21.41940779,169.32,169.3,89.7]
[1748537342498,31.90478533,169.36,169.26,105.16776319]
[1748537342499,21.41940779,169.31,169.26,105.16776319]
[1748537342701,21.41940779,169.31,169.26,126.58717098]
[1748537343406,27.32584216,169.31,169.26,126.58717098]
[1748537344038,27.32584216,169.31,169.26,120.67940779]
[1748537344336,27.32584216,169.31,169.26,126.58747205]
[1748537346328,27.32584216,169.31,169.26,105.16806426]
[1748537346636,21.41940779,169.3,169.26,126.58747205]
[1748537347617,21.41940779,169.31,169.26,126.58747205]
[1748537347939,5.90562806,169.33,169.22,89.7]
[1748537347940,26.0,169.25,169.22,89.7]
[1748537348117,36.5,169.24,169.18,21.41940779]
[1748537348460,21.41940779,169.23,169.18,21.41940779]
[1748537348615,21.41940779,169.21,169.16,128.81740255]
[1748537349016,21.41940779,169.2,169.16,105.76229476]
[1748537349521,27.3298741,169.2,169.16,105.76229476]
[1748537350450,36.6,169.25,169.19,21.41940779]
[1748537350743,58.07940779,169.24,169.2,21.41940779]
[1748537350910,58.07940779,169.24,169.19,21.41940779]
[1748537351342,21.41940779,169.24,169.19,21.41940779]
[1748537351725,26.0,169.26,169.21,21.41940779]
[1748537351923,9.56,169.27,169.22,21.41940779]
[1748537351924,27.32720623,169.27,169.22,21.41940779]
[1748537352123,21.41940779,169.26,169.21,21.41940779]
[1748537353419,36.68,169.27,169.22,21.41940779]
[1748537353636,58.09940779,169.27,169.23,21.41940779]
[1748537353851,58.09940779,169.27,169.22,21.41940779]
[1748537354151,64.00717011,169.27,169.22,21.41940779]
[1748537355258,64.00717011,169.27,169.22,111.11940779]
[1748537355420,58.09940779,169.27,169.22,117.0286411]
[1748537355746,26.0,169.22,169.16,16.06229476]
[1748537355945,21.41940779,169.17,169.16,16.06229476]
[1748537357529,27.33062136,169.17,169.16,16.06229476]
[1748537359343,5.91121357,169.17,169.16,16.06229476]
[1748537359531,27.33062136,169.17,169.16,16.06229476]
[1748537361674,5.91121357,169.17,169.16,16.06229476]
[1748537361832,27.33062136,169.17,169.16,16.06229476]
[1748537365253,5.91121357,169.17,169.16,16.06229476]
[1748537365460,27.33062136,169.17,169.16,16.06229476]
[1748537365963,27.75710607,169.17,169.16,16.06229476]
[1748537368185,5.91121357,169.17,169.16,16.06229476]
[1748537368349,27.33062136,169.17,169.16,16.06229476]
[1748537369157,21.41940779,169.17,169.16,16.06229476]
[1748537369366,58.03940779,169.17,169.16,16.06229476]
[1748537369671,63.95062136,169.17,169.16,16.06229476]
[1748537371873,21.41940779,169.17,169.16,16.06229476]
[1748537372044,21.41940779,169.18,169.16,16.06229476]
[1748537372246,21.41940779,169.18,169.16,105.76229476]
[1748537373360,21.41940779,169.17,169.16,105.76229476]
[1748537375138,27.33062136,169.17,169.16,105.76229476]
[1748537375540,27.33062136,169.17,169.16,16.06229476]
[1748537377846,46.40675493,169.17,169.16,16.06229476]
[1748537378155,56.08675493,169.17,169.16,16.06229476]
[1748537378667,16.01769828,169.17,169.16,16.06229476]
[1748537378842,42.51121357,169.17,169.16,16.06229476]
[1748537379042,63.93062136,169.17,169.16,16.06229476]
[1748537382145,5.91121357,169.17,169.16,16.06229476]
[1748537382347,42.51121357,169.17,169.16,16.06229476]
[1748537382868,5.91121357,169.17,169.16,16.06229476]
[1748537383451,27.33062136,169.17,169.16,16.06229476]
[1748537385675,5.91121357,169.17,169.16,16.06229476]
[1748537385973,27.33062136,169.17,169.16,16.06229476]
[1748537387074,5.91086416,169.18,169.16,16.06229476]
[1748537387277,21.41940779,169.17,169.16,16.06229476]
[1748537389182,27.33062136,169.17,169.16,16.06229476]
[1748537393978,40.77558378,169.2,169.16,16.06229476]
[1748537393979,26.0,169.2,169.16,16.06229476]
[1748537394185,57.97940779,169.19,169.16,16.06229476]
[1748537394482,21.41940779,169.19,169.16,16.06229476]
[1748537394683,27.33006275,169.19,169.16,16.06229476]
[1748537399365,21.41940779,169.18,169.16,16.06229476]
[1748537399567,5.91016548,169.2,169.16,105.76229476]
[1748537399970,21.41940779,169.19,169.16,105.76229476]
[1748537400267,21.41940779,169.18,169.16,105.76229476]
[1748537400962,21.41940779,169.17,169.16,105.76229476]
[1748537401363,21.41940779,169.17,169.16,16.06229476]
[1748537401364,27.75710607,169.17,169.16,16.06229476]
[1748537403486,27.33062136,169.17,169.16,16.06229476]
[1748537404705,63.87062136,169.17,169.16,16.06229476]
[1748537405964,27.33062136,169.17,169.16,16.06229476]
[1748537408163,63.87062136,169.17,169.16,16.06229476]
[1748537413719,42.45121357,169.17,169.16,16.06229476]
[1748537413877,5.91121357,169.17,169.16,16.06229476]
[1748537414670,27.33062136,169.17,169.16,16.06229476]
[1748537415501,5.91121357,169.17,169.16,16.06229476]
[1748537415699,27.33062136,169.17,169.16,16.06229476]
[1748537419905,53.33062136,169.17,169.16,16.06229476]
[1748537423280,27.75710607,169.17,169.16,16.06229476]
[1748537424307,53.75710607,169.17,169.16,16.06229476]
[1748537424485,53.33062136,169.17,169.16,16.06229476]
[1748537425310,31.91121357,169.17,169.16,16.06229476]
[1748537425479,5.91121357,169.17,169.16,16.06229476]
[1748537426315,27.33062136,169.17,169.16,16.06229476]
[1748537427182,53.33062136,169.17,169.16,16.06229476]
[1748537427406,89.93062136,169.17,169.16,16.06229476]
[1748537430587,90.35710607,169.17,169.16,16.06229476]
[1748537432613,68.51121357,169.17,169.16,16.06229476]
[1748537432816,89.93062136,169.17,169.16,16.06229476]
[1748537436699,89.93062136,169.17,169.01,18.64964886]
[1748537436700,26.0,169.1,169.01,18.64964886]
[1748537436900,27.6254,169.06,168.94,21.41940779]
[1748537437114,0.42648471,169.05,168.93,13.46382525]
[1748537437410,0.42648471,169.05,168.95,21.41940779]
[1748537437411,21.41940779,169.0,168.95,21.41940779]
[1748537437613,21.41940779,169.01,168.95,31.03940779]
[1748537438399,5.91715976,169.0,168.95,31.03940779]
[1748537438604,27.33656755,169.0,168.95,9.62]
[1748537438948,5.91715976,169.0,168.95,30.53940779]
[1748537439498,5.91715976,169.0,168.94,35.62]
[1748537439499,21.41940779,168.99,168.94,35.62]
[1748537439800,21.41940779,169.02,168.97,21.41940779]
[1748537439996,21.41940779,169.01,168.96,21.41940779]
[1748537440195,21.41940779,169.01,168.94,9.62]
[1748537440432,5.91645959,169.02,168.95,21.41940779]
[1748537440649,5.91715976,169.0,168.96,21.41940779]
[1748537440805,5.91715976,169.0,168.94,9.62]
[1748537440806,27.33656755,169.0,168.94,9.62]
[1748537441003,27.33656755,169.0,168.95,21.41940779]
[1748537441226,5.91715976,169.0,168.94,9.62]
[1748537441404,5.91715976,169.0,168.95,21.41940779]
[1748537442322,5.91715976,169.0,168.96,21.41940779]
[1748537443917,27.33630134,169.01,168.96,21.41940779]
[1748537444421,56.17970951,169.04,168.97,21.41940779]
[1748537444422,21.41940779,169.02,168.97,21.41940779]
[1748537444597,77.17263259,169.04,168.99,21.41940779]
[1748537444799,83.08846182,169.04,168.99,21.41940779]
[1748537445010,21.41940779,169.03,168.98,21.41940779]
[1748537446014,5.91645959,169.02,168.98,21.41940779]
[1748537447027,27.33586738,169.02,168.98,21.41940779]
[1748537447328,27.33586738,169.02,168.96,26.0]
[1748537447508,27.33586738,169.02,168.98,21.41940779]
[1748537447932,5.91645959,169.02,168.99,21.41940779]
[1748537449439,5.91645959,169.02,168.96,31.91839317]
[1748537449724,5.91645959,169.02,168.98,21.41940779]
[1748537449940,5.91620875,169.03,168.99,21.41940779]
[1748537450358,61.66907624,169.04,169.01,21.41940779]
[1748537450735,55.7532248,169.04,169.01,21.41940779]
[1748537450946,55.7532248,169.04,169.02,21.41940779]
[1748537451553,61.66903911,169.04,169.01,21.41940779]
[1748537452248,61.66903911,169.04,168.99,1.6246]
[1748537452424,61.66903911,169.04,169.01,21.41940779]
[1748537455341,61.66903911,169.04,169.02,21.41940779]
[1748537456036,55.7532248,169.04,169.03,21.41940779]
[1748537456852,61.66898438,169.04,169.02,21.41940779]
[1748537460946,55.7532248,169.04,169.02,21.41940779]
[1748537461944,55.7532248,169.04,169.03,21.41940779]
[1748537464469,5.91516617,169.06,169.03,21.41940779]
[1748537464856,5.91516617,169.06,169.0,15.61690119]
[1748537465043,5.91516617,169.06,169.03,21.41940779]
[1748537467084,21.41940779,169.05,169.0,31.11940779]
[1748537468265,5.91575958,169.04,169.0,31.11940779]
[1748537469970,21.41940779,169.05,169.0,31.11940779]
[1748537470146,21.41940779,169.05,169.01,21.41940779]
[1748537470773,14.78764935,169.06,169.01,21.41940779]
[1748537470963,5.91575958,169.04,169.01,21.41940779]
[1748537471466,27.33411767,169.07,169.03,21.41940779]
[1748537472059,27.33411767,169.07,169.02,21.41940779]
[1748537472251,21.41940779,169.06,169.02,21.41940779]
[1748537473063,5.91540964,169.05,169.02,21.41940779]
[1748537474154,5.91540964,169.05,169.01,21.41940779]
[1748537475087,21.41940779,169.04,169.0,9.7]
[1748537475385,21.41940779,169.04,168.99,21.41940779]
[1748537475591,21.41940779,169.03,168.98,89.7]
[1748537475749,21.41940779,169.04,168.99,21.41940779]
[1748537476886,5.91610956,169.03,168.99,21.41940779]
[1748537478179,0.42648471,169.02,168.95,11.3294]
[1748537478472,21.41940779,169.01,168.96,21.41940779]